bitfinex-derivatives/quotes_BTCF0:USTF0_20250127
["timestamp","ask_amount","ask_price","bid_price","bid_amount"]
[1737991810145,0.19655,101750.0,101740.0,0.557355]
[1737991810355,0.00014702,101760.0,101740.0,0.3608]
[1737991810551,0.00014702,101760.0,101750.0,0.77956445]
[1737991811256,2e-08,101760.0,101750.0,1.07956445]
[1737991811455,0.00147462,101800.0,101790.0,0.196473]
[1737991811755,0.00147462,101800.0,101790.0,0.77948745]
[1737991811955,0.19792862,101800.0,101790.0,0.196473]
[1737991812155,0.196492,101780.0,101770.0,0.557302]
[1737991812457,0.3608,101780.0,101760.0,0.00162094]
[1737991812763,0.557312,101770.0,101760.0,0.00014702]
[1737991812953,0.557312,101770.0,101740.0,0.196565]
[1737991812954,0.74431445,101770.0,101740.0,0.34041988]
[1737991813154,0.55735,101750.0,101740.0,0.34041988]
[1737991813560,0.55735,101750.0,101740.0,0.20921988]
[1737991813858,0.196608,101720.0,101710.0,0.21373683]
[1737991814057,0.196627,101710.0,101700.0,0.296636]
[1737991814257,0.196627,101710.0,101700.0,0.1]
[1737991814564,0.77964145,101710.0,101700.0,0.1]
[1737991815457,0.77964145,101710.0,101700.0,0.296647]
[1737991815654,0.557427,101710.0,101700.0,0.296647]
[1737991815855,0.557415,101720.0,101700.0,0.296647]
[1737991816053,0.196627,101710.0,101700.0,0.296647]
[1737991816255,0.77964145,101710.0,101700.0,0.1]
[1737991816948,0.196627,101710.0,101700.0,0.296647]
[1737991817148,0.196612,101720.0,101710.0,0.196618]
[1737991817349,0.00014702,101730.0,101720.0,0.196608]
[1737991817549,0.00014702,101730.0,101720.0,0.557408]
[1737991817754,0.00014702,101730.0,101720.0,2.057408]
[1737991819051,0.557353,101750.0,101740.0,0.196569]
[1737991819856,0.58301445,101750.0,101730.0,0.557382]
[1737991820053,0.196569,101740.0,101730.0,0.3608]
[1737991820253,0.557369,101740.0,101730.0,0.00014702]
[1737991820764,0.196569,101740.0,101730.0,0.00014702]
[1737991821164,0.196627,101710.0,101700.0,0.1]
[1737991821463,0.557427,101710.0,101700.0,0.1]
[1737991821965,0.557427,101710.0,101700.0,0.296647]
[1737991822157,0.557427,101710.0,101700.0,0.1]
[1737991822960,0.58692262,101710.0,101700.0,0.1]
[1737991824665,0.39029562,101710.0,101700.0,0.1]
[1737991824962,0.79204579,101710.0,101700.0,0.296647]
[1737991825466,0.79204579,101710.0,101700.0,0.1]
[1737991826062,0.59541879,101710.0,101680.0,0.01099652]
[1737991826364,0.196705,101670.0,101660.0,0.00786]
[1737991826555,0.918305,101670.0,101660.0,0.00786]
[1737991826760,0.770777,101670.0,101630.0,0.358973]
[1737991826964,0.557563,101640.0,101630.0,0.1622]
[1737991827170,0.557563,101640.0,101630.0,0.0802]
[1737991827359,0.3608,101640.0,101630.0,0.276982]
[1737991827554,0.19689102,101650.0,101640.0,0.196756]
[1737991827860,0.19689102,101650.0,101630.0,0.0802]
[1737991827861,0.196763,101640.0,101630.0,0.0802]
[1737991828062,0.557563,101640.0,101630.0,0.08807]
[1737991828260,0.557563,101640.0,101630.0,0.00787]
[1737991829368,0.196782,101630.0,101610.0,0.198291]
[1737991829565,0.557602,101620.0,101610.0,0.198291]
[1737991829765,0.3608,101620.0,101610.0,0.198291]
[1737991829970,0.3608,101630.0,101620.0,0.196782]
[1737991830168,0.3608,101650.0,101640.0,0.196754]
[1737991830674,0.00014702,101660.0,101650.0,0.196727]
[1737991830968,0.36227644,101670.0,101660.0,0.196724]
[1737991831159,0.3608,101680.0,101670.0,0.196705]
[1737991831363,0.3608,101680.0,101670.0,1.696705]
[1737991832169,0.36094702,101690.0,101680.0,0.196685]
[1737991832369,0.00014702,101690.0,101680.0,0.41889945]
[1737991832769,0.00014702,101690.0,101680.0,0.196685]
[1737991833367,0.00014702,101690.0,101680.0,0.41889945]
[1737991834071,0.39029562,101710.0,101680.0,0.52221445]
[1737991834367,0.10578914,101730.0,101680.0,0.52221445]
[1737991834368,0.20382595,101730.0,101700.0,0.58301445]
[1737991834563,0.20382595,101730.0,101720.0,1.14042245]
[1737991835168,0.23458959,101740.0,101720.0,0.94381445]
[1737991835373,0.26391329,101760.0,101750.0,0.19655]
[1737991835565,0.26391329,101760.0,101750.0,0.77956445]
[1737991836165,0.26391329,101760.0,101750.0,1.14036445]
[1737991836677,0.42729146,101770.0,101760.0,0.196531]
[1737991836678,0.40496197,101770.0,101760.0,0.196531]
[1737991836863,0.19655,101750.0,101740.0,0.00014702]
[1737991837265,0.55735,101750.0,101740.0,0.00014702]
[1737991837466,0.196589,101730.0,101720.0,0.0014744]
[1737991837765,0.557389,101730.0,101720.0,0.0014744]
[1737991838174,0.94400345,101730.0,101720.0,0.0014744]
[1737991838368,0.049152,101720.0,101680.0,0.87038]
[1737991838678,0.196666,101690.0,101680.0,0.8458]
[1737991838869,0.196647,101700.0,101680.0,1.042474]
[1737991839070,0.196647,101700.0,101690.0,0.00014702]
[1737991839263,0.557447,101700.0,101690.0,0.00014702]
[1737991839468,0.00014702,101700.0,101690.0,0.77982747]
[1737991840071,0.55759402,101700.0,101690.0,0.00014702]
[1737991840675,0.00014702,101700.0,101690.0,0.77982747]
[1737991840878,0.1644,101730.0,101690.0,0.88316147]
[1737991841179,0.360993,101730.0,101720.0,0.196608]
[1737991841476,0.1644,101730.0,101720.0,0.557408]
[1737991841775,0.1644,101730.0,101710.0,0.557425]
[1737991841976,0.196627,101710.0,101700.0,0.3608]
[1737991842279,0.196666,101690.0,101680.0,0.557482]
[1737991842480,0.196666,101690.0,101680.0,0.56718316]
[1737991842776,0.196666,101690.0,101680.0,0.00970116]
[1737991842974,0.196685,101680.0,101670.0,0.00014702]
[1737991843170,0.557485,101680.0,101670.0,0.00014702]
[1737991845082,0.196685,101680.0,101670.0,0.00014702]
[1737991845271,0.362272,101690.0,101680.0,0.196685]
[1737991845467,0.27959902,101700.0,101680.0,0.557485]
[1737991845685,0.00014702,101700.0,101690.0,0.557466]
[1737991845982,0.00014702,101700.0,101690.0,2.057466]
[1737991846167,0.00014702,101700.0,101690.0,2.27968045]
[1737991847778,0.52617585,101720.0,101690.0,2.08301445]
[1737991847779,0.55888885,101720.0,101690.0,2.08301445]
[1737991847973,0.19808885,101720.0,101710.0,0.196627]
[1737991848379,0.00147585,101720.0,101710.0,0.557427]
[1737991849177,0.19808385,101720.0,101710.0,0.557427]
[1737991849887,0.196627,101710.0,101700.0,0.55758902]
[1737991850286,0.00147585,101720.0,101710.0,0.196627]
[1737991850478,0.62889205,101740.0,101730.0,0.196589]
[1737991850679,0.62889205,101740.0,101730.0,0.557389]
[1737991851178,0.82546105,101740.0,101730.0,2.057389]
[1737991851687,0.62889205,101740.0,101730.0,2.057389]
[1737991852287,0.22236147,101750.0,101730.0,0.3608]
[1737991852486,0.196589,101730.0,101700.0,0.56715112]
[1737991852682,0.196627,101710.0,101700.0,0.557433]
[1737991854385,0.19649412,101710.0,101700.0,0.557433]
[1737991855788,0.58301445,101710.0,101690.0,0.00014702]
[1737991856086,0.58301445,101710.0,101700.0,0.196633]
[1737991856087,0.19663,101710.0,101700.0,0.196633]
[1737991857083,0.55743,101710.0,101700.0,0.196633]
[1737991857591,0.196647,101700.0,101690.0,0.00014702]
[1737991857893,0.557447,101700.0,101690.0,0.00014702]
[1737991858185,0.557447,101700.0,101690.0,0.19681302]
[1737991861778,0.557447,101700.0,101690.0,1.69681302]
[1737991862885,0.196647,101700.0,101690.0,1.69681302]
[1737991863394,0.557447,101700.0,101690.0,0.00014702]
[1737991863886,0.6608,101700.0,101660.0,0.00786]
[1737991864190,0.196724,101660.0,101650.0,0.1982174]
[1737991864392,0.3608,101680.0,101650.0,0.0014754]
[1737991864592,0.3608,101700.0,101680.0,0.196685]
[1737991864888,0.196647,101700.0,101690.0,0.196653]
[1737991865092,0.55759402,101700.0,101690.0,0.196653]
[1737991865292,0.55759402,101700.0,101680.0,0.00014702]
[1737991865293,0.196666,101690.0,101680.0,0.00014702]
[1737991865487,0.77968045,101690.0,101680.0,0.00014702]
[1737991865881,1.22528045,101690.0,101680.0,6.571e-05]
[1737991866087,0.50368045,101690.0,101680.0,6.571e-05]
[1737991866589,0.86448045,101690.0,101680.0,6.571e-05]
[1737991867192,0.51095641,101720.0,101710.0,0.196627]
[1737991867391,0.55741,101720.0,101710.0,0.196627]
[1737991867595,0.58449026,101730.0,101710.0,0.3608]
[1737991867596,0.00147581,101730.0,101710.0,0.3608]
[1737991867893,0.00147581,101730.0,101720.0,2.057408]
[1737991868099,0.64791044,101750.0,101740.0,0.196569]
[1737991868297,0.45135644,101750.0,101720.0,1.909949]
[1737991868486,0.196574,101740.0,101730.0,0.19672702]
[1737991868688,0.557374,101740.0,101730.0,0.00014702]
[1737991868898,0.557374,101740.0,101730.0,0.19673602]
[1737991869586,0.196569,101740.0,101730.0,0.19672802]
[1737991869791,0.557369,101740.0,101730.0,0.00014702]
[1737991870691,0.557369,101740.0,101700.0,0.3608]
[1737991870692,0.3608,101740.0,101700.0,0.3608]
[1737991870895,0.196647,101700.0,101690.0,0.19814084]
[1737991871097,0.557447,101700.0,101690.0,0.19814084]
[1737991871298,0.77965045,101710.0,101700.0,0.196647]
[1737991871592,0.93700645,101730.0,101720.0,0.196608]
[1737991871796,0.93700645,101730.0,101700.0,0.409961]
[1737991871797,0.196608,101720.0,101710.0,0.196621]
[1737991871998,0.557408,101720.0,101710.0,0.00014702]
[1737991872498,0.196666,101690.0,101680.0,0.00973002]
[1737991872699,0.196693,101680.0,101670.0,0.196699]
[1737991872887,0.409971,101680.0,101650.0,0.16817537]
[1737991873092,0.557519,101670.0,101660.0,0.196724]
[1737991873295,0.196724,101660.0,101650.0,0.20784949]
[1737991873802,0.19685502,101670.0,101660.0,0.196724]
[1737991873991,0.55765502,101670.0,101660.0,0.196724]
[1737991874793,0.36094702,101670.0,101650.0,0.01111349]
[1737991875004,0.557524,101660.0,101650.0,0.20785249]
[1737991875299,0.557524,101660.0,101650.0,0.00147537]
[1737991875596,0.3608,101660.0,101640.0,6.571e-05]
[1737991875900,0.3608,101660.0,101620.0,0.196798]
[1737991875901,0.196782,101630.0,101620.0,0.196798]
[1737991876197,0.19675,101650.0,101620.0,0.0492]
[1737991876401,0.55755,101650.0,101640.0,0.196763]
[1737991876703,0.55751,101670.0,101650.0,0.196743]
[1737991876893,0.00014702,101660.0,101650.0,0.196743]
[1737991878204,0.00014702,101660.0,101650.0,0.557543]
[1737991878401,0.3608,101680.0,101670.0,0.196705]
[1737991878699,0.00147632,101690.0,101680.0,0.196685]
[1737991878902,0.3608,101710.0,101700.0,0.196647]
[1737991879206,0.55889084,101720.0,101710.0,0.196627]
[1737991879701,0.00147584,101720.0,101710.0,0.557427]
[1737991880002,0.23469112,101740.0,101730.0,0.196589]
[1737991880189,0.23469112,101740.0,101730.0,1.14040345]
[1737991880391,0.06122767,101750.0,101730.0,0.94381445]
[1737991880588,0.4417,101780.0,101740.0,0.3608]
[1737991880589,0.557296,101780.0,101740.0,0.3608]
[1737991880791,0.61755644,101790.0,101770.0,0.3608]
[1737991880992,0.09055644,101790.0,101780.0,0.557292]
[1737991881192,0.09070346,101790.0,101780.0,0.557292]
[1737991881601,0.09070346,101790.0,101780.0,2.057292]
[1737991882191,0.00014702,101790.0,101780.0,1.696492]
[1737991882389,0.19662002,101790.0,101780.0,1.5]
[1737991882593,0.55742002,101790.0,101780.0,1.5]
[1737991882903,0.19662002,101790.0,101780.0,2.057292]
[1737991883093,0.19662002,101790.0,101780.0,0.557292]
[1737991883501,0.196492,101780.0,101770.0,1.04249502]
[1737991883701,0.557292,101780.0,101770.0,0.00014702]
[1737991884194,0.19655,101750.0,101740.0,0.681431]
[1737991884595,0.3608,101750.0,101740.0,0.681431]
[1737991884902,0.55735,101750.0,101740.0,0.681431]
[1737991885896,0.19655,101750.0,101740.0,0.681431]
[1737991886305,0.55735,101750.0,101740.0,0.48488]
[1737991886603,0.00014702,101760.0,101750.0,0.19655]
[1737991886800,0.46227463,101800.0,101780.0,0.196492]
[1737991887102,0.65873263,101800.0,101780.0,0.3608]
[1737991887406,0.65873263,101800.0,101790.0,0.196473]
[1737991887604,0.196473,101790.0,101780.0,1.696489]
[1737991887899,0.196495,101780.0,101770.0,0.557307]
[1737991888107,0.196495,101780.0,101770.0,0.55745402]
[1737991888304,0.196475,101790.0,101780.0,0.19649]
[1737991888500,0.557275,101790.0,101780.0,0.19649]
[1737991888693,0.196475,101790.0,101780.0,0.19649]
[1737991888897,0.196492,101780.0,101770.0,0.19665402]
[1737991889102,0.557292,101780.0,101770.0,0.00014702]
[1737991889606,0.28545165,101800.0,101770.0,0.00014702]
[1737991889607,0.54802165,101800.0,101770.0,0.00014702]
[1737991889807,0.196482,101790.0,101780.0,0.196492]
[1737991890007,0.196492,101780.0,101770.0,0.00014702]
[1737991890208,0.557292,101780.0,101770.0,0.00014702]
[1737991890809,0.196476,101790.0,101770.0,0.36094702]
[1737991891109,0.65887865,101800.0,101780.0,0.196492]
[1737991891505,0.196473,101790.0,101780.0,0.196492]
[1737991891709,0.10162165,101800.0,101790.0,0.196473]
[1737991891902,0.29372253,101830.0,101820.0,0.196415]
[1737991892212,0.29372253,101830.0,101820.0,0.557215]
[1737991892412,0.85093653,101830.0,101810.0,0.196428]
[1737991892610,0.3608,101820.0,101800.0,0.196449]
[1737991892803,0.557234,101810.0,101800.0,0.196449]
[1737991893004,0.557234,101810.0,101800.0,0.19659602]
[1737991893306,0.196434,101810.0,101800.0,0.19659602]
[1737991893502,0.55736502,101820.0,101810.0,0.196434]
[1737991893709,0.196434,101810.0,101800.0,0.19659302]
[1737991893909,0.557234,101810.0,101800.0,0.00014702]
[1737991894307,0.85964845,101810.0,101800.0,0.00014702]
[1737991894614,0.196473,101790.0,101780.0,0.00785]
[1737991894801,0.557273,101790.0,101780.0,0.00785]
[1737991895006,0.557273,101790.0,101770.0,0.196503]
[1737991895213,0.557273,101790.0,101780.0,0.196492]
[1737991895614,0.557273,101790.0,101770.0,0.19665302]
[1737991895615,0.196495,101780.0,101770.0,0.19665302]
[1737991896704,0.3608,101790.0,101770.0,0.00014702]
[1737991897018,0.00014702,101800.0,101790.0,0.196473]
[1737991897019,0.55740702,101800.0,101790.0,0.196473]
[1737991897310,0.00014702,101800.0,101790.0,0.196473]
[1737991897508,0.00014702,101800.0,101790.0,0.557273]
[1737991897715,0.196473,101790.0,101780.0,0.196489]
[1737991898212,0.557273,101790.0,101780.0,0.196489]
[1737991898409,0.557273,101790.0,101770.0,0.22236147]
[1737991898410,0.3608,101790.0,101770.0,0.00014702]
[1737991898713,0.196492,101780.0,101770.0,0.19664802]
[1737991899608,0.557276,101790.0,101780.0,0.196492]
[1737991900414,0.196492,101780.0,101770.0,0.00014702]
[1737991900613,0.3608,101780.0,101770.0,0.19665802]
[1737991900917,0.3608,101790.0,101780.0,0.196492]
[1737991900918,0.557276,101790.0,101780.0,0.196492]
[1737991901115,0.27580302,101800.0,101790.0,0.196473]
[1737991901313,0.00014702,101800.0,101790.0,0.77948745]
[1737991901514,0.196437,101810.0,101800.0,0.196446]
[1737991901818,0.196453,101800.0,101790.0,0.557266]
[1737991902004,0.196438,101810.0,101800.0,0.196447]
[1737991902206,0.4466,101830.0,101800.0,0.3608]
[1737991902516,0.3608,101830.0,101820.0,0.196415]
[1737991902705,0.55734302,101830.0,101820.0,0.196415]
[1737991902907,0.196415,101820.0,101800.0,0.36094702]
[1737991903106,0.557234,101810.0,101800.0,0.20465014]
[1737991903315,0.196434,101810.0,101800.0,0.20465014]
[1737991903820,0.557234,101810.0,101800.0,0.20465014]
[1737991904020,0.557234,101810.0,101800.0,0.00014702]
[1737991904219,0.640934,101810.0,101800.0,0.00014702]
[1737991904710,0.280134,101810.0,101800.0,0.19660002]
[1737991905105,0.640934,101810.0,101800.0,0.19660002]
[1737991905306,0.280134,101810.0,101800.0,0.19660002]
[1737991905510,0.640934,101810.0,101800.0,0.19660002]
[1737991905712,0.640934,101810.0,101800.0,0.00014702]
[1737991906411,0.557221,101820.0,101810.0,0.196434]
[1737991906715,0.557215,101820.0,101810.0,0.196434]
[1737991907017,0.3608,101820.0,101810.0,1.696434]
[1737991907809,0.19654902,101830.0,101820.0,0.196415]
[1737991908009,0.55734902,101830.0,101820.0,0.196415]
[1737991908215,0.00014702,101830.0,101820.0,0.48963361]
[1737991908414,0.3608,101870.0,101820.0,0.3608]
[1737991908622,0.196341,101860.0,101850.0,0.196345]
[1737991908811,0.276925,101870.0,101860.0,0.196338]
[1737991909215,0.276925,101870.0,101860.0,0.11649873]
[1737991909420,0.276925,101870.0,101850.0,0.3608]
[1737991909421,0.0806,101870.0,101850.0,0.3608]
[1737991909618,0.19634,101860.0,101850.0,0.19649002]
[1737991909813,0.19634,101860.0,101850.0,0.55729002]
[1737991910115,0.19634,101860.0,101850.0,0.00014702]
[1737991910814,0.55714,101860.0,101850.0,0.00014702]
[1737991911816,0.276925,101870.0,101850.0,0.00014702]
[1737991912014,0.276925,101870.0,101860.0,0.196338]
[1737991912313,0.196338,101860.0,101850.0,0.19650102]
[1737991912512,0.557138,101860.0,101850.0,0.19650102]
[1737991913418,0.557138,101860.0,101850.0,0.00014702]
[1737991913818,0.557138,101860.0,101850.0,0.19650402]
[1737991914616,0.196338,101860.0,101850.0,0.19650402]
[1737991914816,0.557138,101860.0,101850.0,0.19650402]
[1737991915922,0.196338,101860.0,101850.0,0.19650402]
[1737991916229,0.196338,101860.0,101850.0,0.20444945]
[1737991916426,0.557138,101860.0,101850.0,0.00809245]
[1737991916617,0.557138,101860.0,101850.0,0.00014702]
[1737991917119,0.3608,101860.0,101820.0,2.549619]
[1737991917322,0.557196,101830.0,101820.0,0.48456]
[1737991917523,0.557196,101830.0,101820.0,0.20453168]
[1737991917717,0.196396,101830.0,101820.0,0.196415]
[1737991917928,0.196415,101820.0,101810.0,0.41864045]
[1737991918126,0.557215,101820.0,101810.0,0.41864045]
[1737991918431,0.3608,101820.0,101810.0,1.91864045]
[1737991918628,0.3608,101820.0,101810.0,1.92649045]
[1737991918832,0.557215,101820.0,101810.0,1.92649045]
[1737991919130,0.557215,101820.0,101810.0,1.704276]
[1737991919334,0.918015,101820.0,101810.0,0.00785]
[1737991919536,0.557215,101820.0,101810.0,0.204284]
[1737991920029,0.196434,101810.0,101800.0,1.70620042]
[1737991920332,0.557234,101810.0,101800.0,1.70620042]
[1737991920633,0.196434,101810.0,101800.0,1.70472709]
[1737991920834,0.44034702,101830.0,101800.0,1.91819509]
[1737991921025,0.07954702,101830.0,101820.0,0.196415]
[1737991921337,0.00014702,101830.0,101820.0,0.196415]
[1737991921634,0.19654302,101830.0,101820.0,0.196415]
[1737991922134,0.00014702,101830.0,101820.0,0.196415]
[1737991922438,0.557164,101850.0,101820.0,0.3608]
[1737991922621,0.3608,101850.0,101820.0,0.409902]
[1737991922930,0.196428,101820.0,101810.0,0.196431]
[1737991924432,0.3608,101840.0,101810.0,0.63212245]
[1737991924631,0.557176,101840.0,101830.0,0.41861045]
[1737991925030,0.557176,101840.0,101830.0,0.196396]
[1737991925529,0.196406,101830.0,101820.0,0.196405]
[1737991925837,0.557206,101830.0,101820.0,0.19655202]
[1737991926235,0.557206,101830.0,101820.0,0.00014702]
[1737991926438,0.196434,101810.0,101800.0,0.00813607]
[1737991926623,0.196453,101800.0,101790.0,0.37043484]
[1737991926822,0.557253,101800.0,101790.0,1.87043484]
[1737991927036,0.196438,101810.0,101800.0,0.196438]
[1737991927232,0.196453,101800.0,101790.0,0.37043384]
[1737991927444,0.557253,101800.0,101790.0,0.37870914]
[1737991927733,0.557253,101800.0,101790.0,1.87870914]
[1737991928033,0.557253,101800.0,101790.0,1.68224214]
[1737991928227,0.557253,101800.0,101790.0,1.87871514]
[1737991928422,0.55738402,101810.0,101800.0,0.196453]
[1737991929735,0.196453,101800.0,101790.0,1.7047393]
[1737991929936,0.557253,101800.0,101790.0,1.7047393]
[1737991930537,0.557253,101800.0,101790.0,0.0082753]
[1737991930738,0.3608,101800.0,101780.0,0.00014702]
[1737991930925,0.557273,101790.0,101780.0,0.00014702]
[1737991931128,0.642573,101790.0,101780.0,0.00014702]
[1737991931829,0.196492,101780.0,101770.0,0.204371]
[1737991932029,0.557292,101780.0,101770.0,0.00786]
[1737991932833,0.557292,101780.0,101770.0,0.204371]
[1737991933327,0.557292,101780.0,101770.0,0.00786]
[1737991933527,0.3608,101780.0,101760.0,0.00811234]
[1737991933735,0.557311,101770.0,101760.0,0.20463734]
[1737991934038,0.557311,101770.0,101760.0,0.00811234]
[1737991934537,0.557311,101770.0,101760.0,0.20464334]
[1737991934731,0.196511,101770.0,101760.0,0.20464334]
[1737991934926,0.557311,101770.0,101760.0,0.00811234]
[1737991936537,0.557311,101770.0,101760.0,0.00014702]
[1737991936737,0.196569,101740.0,101730.0,0.00147428]
[1737991937039,0.910309,101740.0,101730.0,0.00940161]
[1737991937238,0.910309,101740.0,101730.0,0.00147428]
[1737991938137,0.910309,101740.0,101730.0,0.00933428]
[1737991938339,0.910309,101740.0,101730.0,0.00786]
[1737991938536,0.196589,101730.0,101720.0,0.00014702]
[1737991938736,0.196627,101710.0,101700.0,0.76675322]
[1737991939038,0.918227,101710.0,101700.0,1.97884022]
[1737991939531,0.3608,101730.0,101720.0,0.1966]
[1737991939733,0.557379,101740.0,101720.0,0.1966]
[1737991939936,0.3608,101730.0,101720.0,0.1966]
[1737991940239,0.55752602,101740.0,101730.0,0.196589]
[1737991940926,0.00014702,101740.0,101730.0,0.196589]
[1737991941130,0.00014702,101740.0,101730.0,0.41880345]
[1737991941331,0.00014702,101740.0,101730.0,0.77960345]
[1737991943040,0.00014702,101740.0,101730.0,0.196589]
[1737991943333,0.55751602,101740.0,101730.0,0.00856475]
[1737991943539,0.196608,101720.0,101710.0,0.00014702]
[1737991943739,0.918208,101720.0,101710.0,0.00014702]
[1737991944342,0.918208,101720.0,101710.0,0.02471702]
[1737991945431,0.918208,101720.0,101710.0,0.00014702]
[1737991946039,0.196608,101720.0,101710.0,0.19677402]
[1737991946242,0.4406,101730.0,101710.0,0.58316147]
[1737991946538,0.557408,101720.0,101710.0,0.00014702]
[1737991949241,0.3608,101720.0,101700.0,0.10147476]
[1737991949438,0.3608,101720.0,101690.0,0.00849467]
[1737991949439,0.5261,101710.0,101690.0,0.00849467]
[1737991949639,0.3608,101700.0,101680.0,2.181402]
[1737991949839,0.557466,101690.0,101680.0,2.181402]
[1737991950242,0.557466,101690.0,101680.0,2.18991593]
[1737991950837,0.196666,101690.0,101680.0,2.18991593]
[1737991951038,0.557466,101690.0,101680.0,2.18991593]
[1737991951544,0.3608,101690.0,101680.0,2.18991593]
[1737991951939,0.00014702,101700.0,101690.0,0.196666]
[1737991952147,0.00014702,101700.0,101690.0,0.77968045]
[1737991952440,0.00014702,101700.0,101690.0,1.07968045]
[1737991952642,0.3608,101720.0,101690.0,2.13217945]
[1737991952946,0.196647,101700.0,101690.0,2.27967245]
[1737991953139,0.3608,101710.0,101700.0,0.196647]
[1737991953140,0.557434,101710.0,101700.0,0.196647]
[1737991953332,0.196647,101700.0,101690.0,1.91887345]
[1737991953538,0.196666,101690.0,101680.0,0.68991693]
[1737991953735,0.196666,101690.0,101680.0,0.69006395]
[1737991954046,0.196666,101690.0,101680.0,2.19006395]
[1737991955941,0.557453,101700.0,101690.0,0.196666]
[1737991956646,0.55758702,101710.0,101700.0,0.196647]
[1737991957443,0.55758702,101710.0,101700.0,0.557447]
[1737991957444,0.00014702,101710.0,101700.0,0.557447]
[1737991957638,0.3608,101730.0,101710.0,0.196615]
[1737991957841,0.3608,101720.0,101680.0,0.49323393]
[1737991958033,0.196666,101700.0,101690.0,0.196663]
[1737991958543,0.557466,101700.0,101690.0,0.196663]
[1737991958743,0.196666,101700.0,101690.0,0.196663]
[1737991959448,0.557466,101700.0,101690.0,0.196663]
[1737991959650,0.196666,101700.0,101690.0,0.196663]
[1737991959848,0.557466,101700.0,101690.0,0.196663]
[1737991960346,0.3608,101700.0,101680.0,1.99338095]
[1737991960551,0.196666,101690.0,101680.0,2.19005795]
[1737991961148,0.557466,101690.0,101680.0,2.19005795]
[1737991961344,0.557466,101690.0,101680.0,0.00014702]
[1737991961552,0.196724,101660.0,101650.0,0.20606902]
[1737991961850,0.196724,101660.0,101650.0,1.69820902]
[1737991962052,0.3608,101670.0,101650.0,1.50147502]
[1737991962234,0.557524,101660.0,101650.0,0.00147502]
[1737991963245,0.196743,101650.0,101640.0,0.00895213]
[1737991963445,0.557543,101650.0,101640.0,0.00014702]
[1737991964845,0.557543,101650.0,101640.0,0.19691002]
[1737991965247,0.557526,101660.0,101650.0,0.196743]
[1737991965446,0.44264702,101670.0,101640.0,0.41013702]
[1737991965751,0.44264702,101670.0,101660.0,0.196724]
[1737991965752,0.36094702,101670.0,101660.0,0.196724]
[1737991966347,0.19673,101660.0,101650.0,0.196736]
[1737991966645,0.55753,101660.0,101650.0,0.196736]
[1737991966851,0.55765502,101670.0,101660.0,0.196724]
[1737991967043,0.196727,101660.0,101650.0,0.196733]
[1737991967242,0.196727,101660.0,101640.0,0.21933402]
[1737991967243,0.36094702,101670.0,101640.0,0.58013402]
[1737991967445,0.55765802,101670.0,101660.0,0.196724]
[1737991967850,0.36094702,101670.0,101650.0,1.5]
[1737991968045,0.557524,101660.0,101650.0,1.696741]
[1737991968552,0.41012302,101670.0,101640.0,0.49493702]
[1737991968553,0.55765902,101670.0,101640.0,0.49493702]
[1737991968755,0.55765902,101670.0,101660.0,0.196724]
[1737991969148,0.36094702,101670.0,101660.0,0.196724]
[1737991969339,0.55765202,101670.0,101660.0,0.196724]
[1737991969550,0.196724,101660.0,101650.0,1.696741]
[1737991969746,0.557524,101660.0,101650.0,1.696741]
[1737991970055,0.36094702,101670.0,101650.0,1.5]
[1737991970251,0.196724,101660.0,101650.0,1.69674]
[1737991970454,0.55765402,101670.0,101660.0,0.196724]
[1737991970648,0.36094702,101670.0,101660.0,0.196724]
[1737991970856,0.00014702,101670.0,101660.0,0.196724]
[1737991971351,0.00014702,101670.0,101660.0,0.557524]
[1737991972448,0.19685202,101670.0,101660.0,0.196724]
[1737991973451,0.00014702,101670.0,101660.0,0.196724]
[1737991974256,0.19815016,101690.0,101680.0,0.196685]
[1737991974461,0.00147616,101690.0,101680.0,1.696685]
[1737991974660,0.643051,101700.0,101690.0,0.196666]
[1737991974955,0.557451,101700.0,101690.0,0.196666]
[1737991975553,0.196651,101700.0,101690.0,0.196666]
[1737991975853,0.19678502,101710.0,101700.0,0.196647]
[1737991976155,0.00014702,101710.0,101700.0,0.68414076]
[1737991976852,0.00014702,101710.0,101700.0,0.32334076]
[1737991977051,0.00014702,101710.0,101700.0,0.68414076]
[1737991978247,0.19677402,101710.0,101700.0,0.196647]
[1737991978657,0.55757402,101710.0,101700.0,0.196647]
[1737991978958,0.196658,101700.0,101690.0,0.196663]
[1737991979358,0.557458,101700.0,101690.0,0.196663]
[1737991979956,0.78749376,101700.0,101660.0,0.54843975]
[1737991980160,1.04499876,101670.0,101660.0,0.52385975]
[1737991980343,1.04499876,101670.0,101660.0,0.52238453]
[1737991981259,1.04499876,101670.0,101660.0,0.54697453]
[1737991981557,0.918305,101670.0,101660.0,0.54697453]
[1737991981860,0.918305,101670.0,101660.0,0.74369853]
[1737991982053,0.196705,101670.0,101660.0,0.221314]
[1737991982253,0.557505,101670.0,101660.0,0.221314]
[1737991982563,0.557505,101670.0,101650.0,0.05807968]
[1737991982564,0.196724,101660.0,101650.0,0.00889468]
[1737991982850,0.557524,101660.0,101650.0,0.00014702]
[1737991984952,0.58703413,101660.0,101650.0,0.00014702]
[1737991985655,0.196743,101650.0,101640.0,0.00787]
[1737991985858,0.196801,101620.0,101610.0,0.196813]
[1737991986066,0.557601,101620.0,101610.0,0.196813]
[1737991986252,0.557601,101620.0,101610.0,1.696813]
[1737991987550,0.55774102,101630.0,101620.0,0.196801]
[1737991987756,0.00014702,101630.0,101620.0,0.557601]
[1737991988057,0.30215009,101660.0,101650.0,0.196743]
[1737991988058,0.02951013,101660.0,101650.0,0.196743]
[1737991988460,0.2576761,101670.0,101650.0,0.58425896]
[1737991988656,0.2576761,101670.0,101660.0,0.557524]
[1737991988857,0.2576761,101670.0,101660.0,0.196724]
[1737991989056,0.2576761,101670.0,101660.0,0.557524]
[1737991989454,0.8151811,101670.0,101660.0,0.196724]
[1737991989659,0.2576761,101670.0,101660.0,0.196724]
[1737991989858,0.2576761,101670.0,101660.0,0.557524]
[1737991990163,0.24686153,101670.0,101660.0,0.557524]
[1737991990762,0.23250153,101670.0,101660.0,0.557524]